bitfinex/quotes_BTCUSD_20250829
["timestamp","ask_amount","ask_price","bid_price","bid_amount"]
[1756451777307,7.62650537,110800.0,110790.0,0.00137564]
[1756451777516,5.64120679,110800.0,110790.0,0.00137564]
[1756451777721,7.63167537,110800.0,110790.0,0.00137564]
[1756451778185,7.66341306,110800.0,110790.0,0.00137564]
[1756451778900,5.70518589,110800.0,110790.0,0.00137564]
[1756451779098,5.72440987,110800.0,110790.0,0.00137564]
[1756451779459,5.72540987,110800.0,110790.0,0.00137564]
[1756451779768,5.74734869,110800.0,110790.0,0.00737564]
[1756451781931,5.77147453,110800.0,110790.0,0.00737564]
[1756451783008,5.7777253,110800.0,110790.0,0.00737564]
[1756451783690,5.9575253,110800.0,110790.0,0.00737564]
[1756451785447,5.9575253,110800.0,110790.0,1e-08]
[1756451785647,5.7777253,110800.0,110790.0,1e-08]
[1756451785852,5.8938262,110800.0,110790.0,1e-08]
[1756451786062,5.7137462,110800.0,110790.0,1e-08]
[1756451786373,5.90783962,110800.0,110790.0,1e-08]
[1756451786707,5.90787962,110800.0,110790.0,1e-08]
[1756451787306,5.70375378,110800.0,110790.0,1e-08]
[1756451787544,5.88367378,110800.0,110790.0,1e-08]
[1756451788073,5.97177872,110800.0,110790.0,1e-08]
[1756451788277,5.91541147,110800.0,110790.0,1e-08]
[1756451788515,5.93953731,110800.0,110790.0,1e-08]
[1756451788716,5.97170365,110800.0,110790.0,1e-08]
[1756451788878,5.94757781,110800.0,110790.0,1e-08]
[1756451789284,5.97154081,110800.0,110790.0,1e-08]
[1756451789680,5.97142081,110800.0,110790.0,1e-08]
[1756451790636,5.97134081,110800.0,110790.0,1e-08]
[1756451791069,5.97130081,110800.0,110790.0,1e-08]
[1756451791215,5.94733781,110800.0,110790.0,1e-08]
[1756451791411,5.97129397,110800.0,110790.0,1e-08]
[1756451791803,5.94725781,110800.0,110790.0,1e-08]
[1756451792158,5.99725781,110800.0,110790.0,1e-08]
[1756451792376,5.95760261,110800.0,110790.0,1e-08]
[1756451792580,6.13612939,110800.0,110790.0,1e-08]
[1756451792732,6.13608939,110800.0,110790.0,1e-08]
[1756451793112,6.23112939,110800.0,110790.0,1e-08]
[1756451793331,6.13592941,110800.0,110790.0,1e-08]
[1756451793966,0.181538,110780.0,110770.0,1.14293741]
[1756451794159,5.46569513,110780.0,110770.0,1.14293741]
[1756451794393,5.84096654,110780.0,110770.0,1.14293741]
[1756451794538,5.85690536,110780.0,110770.0,1.14293741]
[1756451795430,5.85938314,110780.0,110770.0,1.14693741]
[1756451796568,5.67703314,110780.0,110770.0,1.14890741]
[1756451796773,5.82915243,110780.0,110770.0,1.15185741]
[1756451796973,5.79691102,110780.0,110770.0,1.15185741]
[1756451797229,5.2562922,110780.0,110770.0,1.15185741]
[1756451797430,5.40419451,110780.0,110770.0,1.15185741]
[1756451797958,5.00247778,110780.0,110770.0,1.15185741]
[1756451798151,0.18199778,110780.0,110770.0,1.15185741]
[1756451798382,0.36253578,110780.0,110770.0,1.15185741]
[1756451798540,0.18199778,110780.0,110770.0,1.15185741]
[1756451798747,0.00247778,110780.0,110770.0,1.15185741]
[1756451798993,0.18191778,110780.0,110770.0,1.15185741]
[1756451799596,0.18191778,110780.0,110770.0,1.02935741]
[1756451799818,0.36245578,110780.0,110770.0,1.02935741]
[1756451799940,0.70245578,110780.0,110770.0,1.02935741]
[1756451800140,0.52301578,110780.0,110770.0,1.02935741]
[1756451800596,0.70213578,110780.0,110770.0,1.02935741]
[1756451800771,0.52301578,110780.0,110770.0,1.02935741]
[1756451801338,0.70205578,110780.0,110770.0,1.02935741]
[1756451805033,0.70141578,110780.0,110770.0,1.02935741]
[1756451805436,0.70769953,110780.0,110770.0,1.02935741]
[1756451806864,0.70737953,110780.0,110770.0,1.02935741]
[1756451807208,0.72669278,110780.0,110770.0,1.02935741]
[1756451809649,5.80960662,110780.0,110770.0,1.02443741]
[1756451809867,5.83358077,110780.0,110770.0,1.02443741]
[1756451810533,5.86582218,110780.0,110770.0,1.02443741]
[1756451810749,5.83358077,110780.0,110770.0,1.02443741]
[1756451811289,5.86574711,110780.0,110770.0,1.02443741]
[1756451811493,5.88996908,110780.0,110770.0,1.02443741]
[1756451811689,5.89004415,110780.0,110770.0,1.02443741]
[1756451811932,5.91098297,110780.0,110770.0,1.02443741]
[1756451812151,5.92696866,110780.0,110770.0,1.02443741]
[1756451812512,5.8949711,110780.0,110770.0,0.60632699]
[1756451813149,5.88868735,110780.0,110770.0,0.60632699]
[1756451814476,5.85644594,110780.0,110770.0,0.60632699]
[1756451815135,5.85568594,110780.0,110770.0,0.60632699]
[1756451815962,5.88792735,110780.0,110770.0,0.60632699]
[1756451816165,6.33072735,110780.0,110770.0,0.60632699]
[1756451816573,5.88792735,110780.0,110770.0,0.60632699]
[1756451817186,5.90206217,110780.0,110770.0,0.60632699]
[1756451818879,5.88792735,110780.0,110770.0,0.60632699]
[1756451819263,5.88772735,110780.0,110770.0,0.60632699]
[1756451819660,5.85548594,110780.0,110770.0,0.60632699]
[1756451820089,5.67836594,110780.0,110770.0,0.60632699]
[1756451820286,5.85528594,110780.0,110770.0,0.60632699]
[1756451821117,5.88752735,110780.0,110770.0,0.60632699]
[1756451822252,5.71060735,110780.0,110770.0,0.60632699]
[1756451822504,5.88700735,110780.0,110770.0,0.60632699]
[1756451822720,5.72669948,110780.0,110770.0,0.60632699]
[1756451822934,5.87073807,110780.0,110770.0,0.60632699]
[1756451824479,5.69445807,110780.0,110770.0,0.60632699]
[1756451824675,5.87049807,110780.0,110770.0,0.60632699]
[1756451824907,5.69132807,110780.0,110770.0,0.60834699]
[1756451825130,5.86569788,110780.0,110770.0,0.61149699]
[1756451825367,5.8174215,110780.0,110770.0,0.61149699]
[1756451825607,5.84145971,110780.0,110770.0,0.61149699]
[1756451825816,5.82052089,110780.0,110770.0,0.61149699]
[1756451826050,5.80929221,110780.0,110770.0,0.61149699]
[1756451826481,5.91066881,110780.0,110770.0,0.60632699]
[1756451826688,0.33680469,110780.0,110770.0,0.61149699]
[1756451826889,0.44827578,110780.0,110770.0,0.61149699]
[1756451827092,0.4241448,110780.0,110770.0,0.61149699]
[1756451827520,0.40484193,110780.0,110770.0,0.61149699]
[1756451827726,0.00247778,110780.0,110770.0,0.61149699]
[1756451827857,0.00247778,110780.0,110770.0,0.78785699]
[1756451828468,0.18301578,110780.0,110770.0,0.78785699]
[1756451828696,0.56896193,110780.0,110770.0,0.61149699]
[1756451828902,5.61762654,110780.0,110770.0,0.60632699]
[1756451829104,5.69886608,110780.0,110770.0,0.60632699]
[1756451829423,0.1805706,110760.0,110740.0,0.0005]
[1756451829772,5.74403194,110750.0,110740.0,0.0005]
[1756451829983,5.78950439,110750.0,110740.0,0.0005]
[1756451830535,5.78637439,110750.0,110740.0,0.0005]
[1756451830745,5.76333557,110750.0,110740.0,0.00252]
[1756451830946,0.56755194,110750.0,110740.0,0.00867]
[1756451831180,0.001,110760.0,110740.0,0.18591]
[1756451831364,0.22520504,110760.0,110750.0,0.00540733]
[1756451831737,0.17915778,110780.0,110750.0,0.28533989]
[1756451831945,0.35869588,110780.0,110760.0,0.18308713]
[1756451832174,0.35869588,110780.0,110770.0,0.00742692]
[1756451832175,0.17815778,110780.0,110770.0,0.00742692]
[1756451832566,0.00047778,110780.0,110770.0,0.00742692]
[1756451832743,0.00147778,110780.0,110770.0,0.18798122]
[1756451832955,0.00147778,110780.0,110770.0,0.27402062]
[1756451833536,0.00147778,110780.0,110770.0,0.39465144]
[1756451833759,0.00147778,110780.0,110770.0,0.78465144]
[1756451835098,0.00047778,110780.0,110770.0,0.78465144]
[1756451835313,0.00047778,110780.0,110770.0,0.78365144]
[1756451835494,0.00047778,110780.0,110770.0,0.81079144]
[1756451835707,0.00047778,110780.0,110770.0,0.74016062]
[1756451835708,0.00147778,110780.0,110770.0,0.74016062]
[1756451836085,0.00147778,110780.0,110770.0,1.73566655]
[1756451836220,0.00147778,110780.0,110770.0,0.74016062]
[1756451836426,0.00047778,110780.0,110770.0,0.74016062]
[1756451836641,0.00047778,110780.0,110770.0,1.91474655]
[1756451836992,0.00147778,110780.0,110770.0,1.91574655]
[1756451837476,0.00347778,110780.0,110770.0,0.92924062]
[1756451837674,0.00347778,110780.0,110770.0,1.92474655]
[1756451839443,0.00347778,110780.0,110770.0,1.69566655]
[1756451839642,0.00347778,110780.0,110770.0,0.09931632]
[1756451839936,0.18916578,110780.0,110770.0,0.01]
[1756451840668,0.18716578,110780.0,110770.0,0.001]
[1756451840869,0.52716578,110780.0,110770.0,0.001]
[1756451841078,0.52816578,110780.0,110770.0,0.006]
[1756451841296,0.52816578,110780.0,110770.0,0.001]
[1756451841704,0.70912578,110780.0,110770.0,0.003]
[1756451841901,0.75507193,110780.0,110770.0,0.003]
[1756451842104,0.78321,110780.0,110770.0,0.003]
[1756451842480,0.5205869,110750.0,110740.0,0.0005]
[1756451842680,5.7005069,110750.0,110740.0,0.0005]
[1756451842856,5.73379497,110750.0,110740.0,0.0005]
[1756451843092,0.5257369,110750.0,110740.0,0.0005]
[1756451843360,0.7044869,110750.0,110740.0,0.0005]
[1756451843574,0.3623469,110750.0,110740.0,0.0025]
[1756451843983,0.3633469,110750.0,110740.0,0.0025]
[1756451844182,0.3633469,110750.0,110740.0,0.0005]
[1756451844384,0.4315306,110760.0,110740.0,0.00569]
[1756451844519,0.001,110750.0,110740.0,0.19229309]
[1756451844732,0.001,110750.0,110740.0,0.28058941]
[1756451845325,0.59088,110760.0,110740.0,0.27458941]
[1756451845524,0.59088,110760.0,110740.0,0.27858941]
[1756451845770,0.59188,110760.0,110740.0,0.27858941]
[1756451845909,0.59188,110760.0,110740.0,0.09798632]
[1756451845910,0.001,110750.0,110740.0,0.09798632]
[1756451846313,0.001,110750.0,110740.0,0.27858953]
[1756451846514,0.77245106,110760.0,110740.0,0.09798632]
[1756451846968,0.77245106,110760.0,110740.0,0.09398632]
[1756451847173,0.1815869,110750.0,110740.0,0.09998632]
[1756451847414,0.1815869,110750.0,110740.0,0.09679632]
[1756451847630,0.1805869,110750.0,110740.0,0.09398632]
[1756451847825,0.1805869,110750.0,110740.0,0.09798632]
[1756451848270,0.1805869,110750.0,110740.0,0.09398632]
[1756451848419,0.1815869,110750.0,110740.0,0.09998632]
[1756451849411,0.1825869,110750.0,110740.0,0.09998632]
[1756451849639,0.002,110750.0,110740.0,0.09998632]
[1756451850278,0.002,110750.0,110740.0,0.28058953]
[1756451850617,0.002,110750.0,110740.0,0.27539953]
[1756451850888,0.002,110750.0,110740.0,0.28058953]
[1756451852079,0.001,110750.0,110740.0,0.28058953]
[1756451852453,0.001,110750.0,110740.0,0.28358953]
[1756451852657,0.002,110750.0,110740.0,0.28358953]
[1756451853229,0.001,110750.0,110740.0,0.27758953]
[1756451853647,0.002,110750.0,110740.0,0.28258953]
[1756451854872,0.002,110750.0,110740.0,1.65957952]
[1756451855270,0.002,110750.0,110740.0,2.08407952]
[1756451857369,0.002,110750.0,110740.0,2.10501834]
[1756451858421,0.001,110750.0,110740.0,2.10201834]
[1756451858595,0.001,110750.0,110740.0,2.10801834]
[1756451858749,0.002,110750.0,110740.0,2.10801834]
[1756451859526,0.001,110750.0,110740.0,2.10301834]
[1756451860020,0.002,110750.0,110740.0,2.11001834]
[1756451861291,0.002,110750.0,110740.0,0.73302835]
[1756451861713,0.002,110750.0,110740.0,2.13716334]
[1756451862136,0.002,110750.0,110740.0,2.31632334]
[1756451863093,0.002,110750.0,110740.0,2.31616334]
[1756451863209,0.002,110750.0,110740.0,0.93917335]
[1756451863405,0.002,110750.0,110740.0,2.31616334]
[1756451864216,0.002,110750.0,110740.0,0.93917335]
[1756451864422,0.002,110750.0,110740.0,2.31616334]
[1756451865365,0.002,110750.0,110740.0,1.93408414]
[1756451868376,0.002,110750.0,110740.0,0.93917335]
[1756451868561,0.002,110750.0,110740.0,1.93408414]
[1756451869505,0.002,110750.0,110740.0,0.76017335]
[1756451869715,0.002,110750.0,110740.0,1.93396414]
[1756451874995,0.002,110750.0,110740.0,1.75508414]
[1756451875198,0.002,110750.0,110740.0,1.93356414]
[1756451876282,0.002,110750.0,110740.0,1.98356414]
[1756451876706,0.00047778,110780.0,110770.0,0.1805543]
[1756451876909,0.00047778,110780.0,110770.0,1.44204141]
[1756451877131,0.00047778,110780.0,110770.0,1.44410141]
[1756451877825,0.00047778,110780.0,110770.0,1.44726141]
[1756451878225,0.00147778,110780.0,110770.0,1.44926141]
[1756451878878,0.00147778,110780.0,110770.0,1.45226141]
[1756451879035,0.00247778,110780.0,110770.0,1.45226141]
[1756451879257,0.00247778,110780.0,110770.0,0.45735062]
[1756451879485,0.00445778,110780.0,110770.0,1.44640141]
[1756451879676,0.00440754,110780.0,110770.0,1.44846141]
[1756451880130,0.00440754,110780.0,110770.0,1.26876141]
[1756451880575,0.00440754,110780.0,110770.0,1.44628141]
[1756451880758,0.00440754,110780.0,110770.0,1.44834141]
[1756451881098,0.00242754,110780.0,110770.0,1.45150141]
[1756451881979,0.00242754,110780.0,110770.0,1.89150141]
[1756451882536,0.00242754,110780.0,110770.0,1.91244023]
[1756451883425,0.00142754,110780.0,110770.0,1.90944023]
[1756451883625,0.00042754,110780.0,110770.0,1.90744023]
[1756451883822,0.00142754,110780.0,110770.0,1.91344023]
[1756451884787,0.00242754,110780.0,110770.0,1.91844023]
[1756451886148,0.00242754,110780.0,110770.0,2.18814023]
[1756451887527,0.00237731,110780.0,110770.0,2.18814023]
[1756451888297,0.00435731,110780.0,110770.0,1.19006944]
[1756451888528,0.00237731,110780.0,110770.0,2.18814023]
[1756451892222,0.00237731,110780.0,110770.0,2.21527523]
[1756451896803,0.00237731,110780.0,110770.0,2.21559523]
[1756451897008,0.00237731,110780.0,110770.0,2.03775523]
[1756451897203,0.00237731,110780.0,110770.0,1.04284444]
[1756451897434,0.00237731,110780.0,110770.0,2.21535523]
[1756451899043,0.00237731,110780.0,110770.0,1.22044444]
[1756451899241,0.00237731,110780.0,110770.0,2.21535523]
[1756451899859,0.00237731,110780.0,110770.0,2.21491523]
[1756451900061,0.00237731,110780.0,110770.0,1.21992444]
[1756451900261,0.00237731,110780.0,110770.0,2.21483523]
[1756451900432,0.00237731,110780.0,110770.0,1.04284444]
[1756451900638,0.00237731,110780.0,110770.0,1.96159641]
[1756451900639,0.00774731,110780.0,110770.0,1.96159641]
[1756451901006,0.00774731,110780.0,110770.0,1.32476141]
[1756451901207,0.00774731,110780.0,110770.0,0.45689062]
[1756451901419,0.00774731,110780.0,110770.0,1.45180141]
[1756451901912,0.00774731,110780.0,110770.0,1.27476141]
[1756451902041,0.00774731,110780.0,110770.0,0.45677062]
[1756451902241,0.00774731,110780.0,110770.0,1.45168141]
[1756451903767,0.00774731,110780.0,110770.0,1.45164141]
[1756451904620,0.00774731,110780.0,110770.0,0.45673062]
[1756451904903,0.00774731,110780.0,110770.0,1.45164141]
[1756451905462,0.00774731,110780.0,110770.0,1.27476141]
[1756451905676,0.00774731,110780.0,110770.0,1.45112141]
[1756451906018,0.00774731,110780.0,110770.0,1.27476141]
[1756451906219,0.00774731,110780.0,110770.0,0.09929632]
[1756451907137,0.00574731,110780.0,110770.0,0.08829632]
[1756451907338,0.18728531,110780.0,110770.0,0.08829632]
[1756451908502,0.001,110780.0,110770.0,0.09029632]
[1756451909057,0.181538,110780.0,110770.0,0.09029632]
[1756451914111,0.181538,110780.0,110770.0,0.002]
[1756451914833,0.181538,110780.0,110740.0,0.002]
[1756451914834,0.1805869,110750.0,110740.0,0.002]
[1756451915046,5.92855803,110750.0,110740.0,1e-08]
[1756451915247,5.94599315,110750.0,110740.0,1e-08]
[1756451915438,6.00280551,110750.0,110740.0,1e-08]
[1756451915640,0.60025604,110740.0,110730.0,1e-08]
[1756451915838,5.6878126,110740.0,110730.0,1e-08]
[1756451916056,5.71541497,110740.0,110730.0,1e-08]
[1756451916295,0.54159097,110710.0,110700.0,0.0023]
[1756451916441,0.91182517,110710.0,110700.0,0.0023]
[1756451917079,0.92863361,110710.0,110700.0,0.0023]
[1756451917486,5.92963361,110710.0,110700.0,0.0033]
[1756451918293,5.9442022,110710.0,110700.0,0.0033]
[1756451919063,5.9442022,110710.0,110690.0,0.2614311]
[1756451919064,0.54160729,110700.0,110690.0,0.2614311]
[1756451919264,5.76278753,110700.0,110690.0,0.2614311]
[1756451920607,5.73966912,110700.0,110690.0,0.2624311]
[1756451920816,5.91634912,110700.0,110690.0,0.2624311]
[1756451921037,5.90802421,110700.0,110690.0,0.2624311]
[1756451922058,5.91002421,110700.0,110690.0,0.2634311]
[1756451922223,5.90378053,110700.0,110690.0,0.2634311]
[1756451923141,5.93068914,110700.0,110690.0,0.2634311]
[1756451924232,5.90354053,110700.0,110690.0,0.2634311]
[1756451924634,5.61885166,110700.0,110690.0,0.2634311]
[1756451924836,0.45525166,110700.0,110690.0,0.2634311]
[1756451925066,5.45525166,110700.0,110690.0,0.2634311]
[1756451925262,0.45525166,110700.0,110690.0,0.2634311]
[1756451925669,0.79525166,110700.0,110690.0,0.2634311]
[1756451925877,0.61685166,110700.0,110690.0,0.2655711]
[1756451926077,0.79345166,110700.0,110690.0,0.2677111]
[1756451926301,0.81239048,110700.0,110690.0,0.2645711]
[1756451926513,0.81251048,110700.0,110690.0,0.2667111]
[1756451926926,0.81351048,110700.0,110690.0,0.2677111]
[1756451927116,0.81351048,110700.0,110690.0,0.2655711]
[1756451927427,0.81339048,110700.0,110690.0,0.2624311]
[1756451927852,0.81239048,110700.0,110690.0,0.2624311]
[1756451928193,0.81339048,110700.0,110690.0,0.2634311]
[1756451928947,0.63679048,110700.0,110690.0,0.2687711]
[1756451929180,0.79205166,110700.0,110690.0,0.2687711]
[1756451931002,0.76487266,110700.0,110680.0,4e-05]
[1756451931207,0.60803585,110690.0,110680.0,4e-05]
[1756451931455,0.78619585,110690.0,110680.0,4e-05]
[1756451931864,0.78619585,110690.0,110680.0,0.00323]
[1756451932062,0.60803585,110690.0,110680.0,0.00538]
[1756451932465,0.76553703,110690.0,110680.0,0.00538]
[1756451932825,0.76553703,110690.0,110680.0,0.00638]
[1756451933026,0.76553703,110690.0,110680.0,0.00104]
[1756451933228,0.76853703,110690.0,110680.0,0.00204]
[1756451933430,0.76853703,110690.0,110680.0,0.00104]
[1756451933631,0.76553703,110690.0,110680.0,0.00104]
[1756451933843,0.76553703,110690.0,110680.0,0.00204]
[1756451934052,0.76653703,110690.0,110680.0,0.00204]
[1756451934248,0.76653703,110690.0,110680.0,0.00104]
[1756451934973,0.76753703,110690.0,110680.0,0.00204]
[1756451935317,5.76753703,110690.0,110680.0,0.00204]
[1756451935442,5.79565352,110690.0,110680.0,0.00204]
[1756451936296,5.81659234,110690.0,110680.0,0.00204]
[1756451936497,5.83317046,110690.0,110680.0,0.00204]
[1756451937737,5.62839425,110690.0,110680.0,0.00204]
[1756451937862,5.80907904,110690.0,110680.0,0.00204]
[1756451938987,5.81530298,110690.0,110680.0,0.00204]
[1756451939191,5.82360828,110690.0,110680.0,1e-08]
[1756451939385,5.83271238,110690.0,110680.0,1e-08]
[1756451939592,0.59614523,110680.0,110670.0,1e-08]
[1756451939958,6.21853965,110680.0,110670.0,1e-08]
[1756451941393,6.24571415,110680.0,110670.0,1e-08]
[1756451941593,6.24871415,110680.0,110670.0,1e-08]
[1756451942207,0.54165626,110670.0,110660.0,4e-05]
[1756451942410,5.977888,110670.0,110660.0,4e-05]
[1756451942932,5.981512,110670.0,110660.0,4e-05]
[1756451943148,5.80281046,110670.0,110660.0,4e-05]
[1756451943364,0.26655511,110670.0,110660.0,0.00538]
[1756451943556,0.45290673,110670.0,110660.0,0.00685778]
[1756451943772,5.5002585,110670.0,110660.0,0.00151778]
[1756451943973,6.36261878,110670.0,110660.0,0.00151778]
[1756451944377,6.3786625,110670.0,110660.0,0.00051778]
[1756451944555,6.3756625,110670.0,110660.0,0.00051778]
[1756451944791,5.9348625,110670.0,110630.0,0.00319]
[1756451944967,0.36408796,110640.0,110620.0,0.18079829]
[1756451945137,0.1796,110630.0,110620.0,0.18079829]
[1756451945338,0.1796,110630.0,110620.0,0.00215]
[1756451945339,0.39627763,110630.0,110620.0,0.00215]
[1756451945578,0.19853949,110630.0,110620.0,0.18294913]
[1756451945951,0.21526369,110630.0,110620.0,0.18294913]
[1756451946302,0.19602841,110630.0,110620.0,0.18294913]
[1756451946514,0.37822388,110630.0,110620.0,0.00215]
[1756451946676,0.39749553,110630.0,110620.0,0.00215]
[1756451946877,0.39749553,110630.0,110620.0,0.18613913]
[1756451946878,0.03647275,110630.0,110620.0,0.18613913]
[1756451947165,0.1974011,110630.0,110620.0,0.18613913]
[1756451947353,0.1974011,110630.0,110620.0,0.00534]
[1756451947354,0.46740287,110630.0,110620.0,0.00534]
[1756451947520,0.47467275,110630.0,110620.0,0.01034]
[1756451948370,0.50398821,110630.0,110620.0,0.01034]
[1756451948554,0.50498821,110630.0,110620.0,0.01134]
[1756451948799,0.53137701,110630.0,110620.0,0.01134]
[1756451949000,0.60298783,110630.0,110620.0,0.005]
[1756451949411,0.18079913,110620.0,110610.0,0.00319]
[1756451949619,0.32376013,110620.0,110610.0,0.00319]
[1756451949861,0.32575013,110620.0,110590.0,0.18988646]
[1756451950064,0.32575013,110620.0,110570.0,0.00319]
[1756451950065,0.18086453,110580.0,110570.0,0.00319]
[1756451950301,0.18086453,110580.0,110560.0,0.18109604]
[1756451950302,0.39223756,110580.0,110560.0,0.18109604]
[1756451950538,0.23776183,110580.0,110570.0,0.18303088]
[1756451950751,0.23776183,110580.0,110570.0,0.18622088]
[1756451950938,0.23776183,110580.0,110570.0,0.00534]
[1756451951131,0.23776183,110580.0,110570.0,0.18622088]
[1756451951328,0.41910296,110580.0,110570.0,0.00534]
[1756451952000,0.41910296,110580.0,110560.0,0.0002]
[1756451952001,0.18088088,110570.0,110560.0,0.0002]
[1756451952206,0.23400312,110570.0,110560.0,0.00339]
[1756451952416,0.37814303,110570.0,110560.0,0.0002]
[1756451952627,0.3534464,110570.0,110560.0,0.0002]
[1756451952889,0.37009751,110570.0,110560.0,0.0002]
[1756451953041,0.36261072,110570.0,110560.0,0.0002]
[1756451953254,0.0881702,110570.0,110560.0,0.00554]
[1756451953508,0.01665111,110570.0,110560.0,0.18643725]
[1756451953733,0.0014766,110580.0,110570.0,0.18088088]
[1756451953881,1e-08,110580.0,110570.0,0.99810079]
[1756451954081,1e-08,110580.0,110570.0,1.18113167]
[1756451954307,0.26687082,110610.0,110570.0,1.18113167]
[1756451954308,0.10887657,110630.0,110620.0,0.18079913]
[1756451954514,0.10887657,110630.0,110620.0,0.18613913]
[1756451954515,0.07063082,110630.0,110620.0,0.18613913]
[1756451954911,0.28795082,110650.0,110630.0,0.17978278]
[1756451954912,0.07063082,110650.0,110630.0,0.17978278]
[1756451955175,0.07063082,110650.0,110640.0,0.18510644]
[1756451955176,0.35636552,110650.0,110640.0,0.18510644]
[1756451955320,0.36691241,110650.0,110640.0,0.18510644]
[1756451955523,0.33972441,110650.0,110640.0,0.18524905]
[1756451956178,0.14008441,110650.0,110640.0,0.18324905]
[1756451956760,5.34275723,110650.0,110640.0,0.00014261]
[1756451956962,0.54170526,110640.0,110630.0,0.001]
[1756451957162,5.65241996,110640.0,110630.0,0.001]
[1756451957368,0.18083964,110600.0,110580.0,0.18086422]
[1756451957571,0.20008,110590.0,110580.0,0.18086422]
[1756451957726,0.27237706,110630.0,110600.0,0.18082874]
[1756451957891,0.19992,110620.0,110610.0,0.18400489]
[1756451958094,0.26939497,110630.0,110620.0,0.18079913]
[1756451958293,0.26943497,110630.0,110620.0,0.18613913]
[1756451958911,0.26957792,110630.0,110620.0,0.18613913]
[1756451959109,0.00314295,110630.0,110620.0,0.18613913]
[1756451959360,0.01979554,110630.0,110620.0,1.56549388]
[1756451959567,0.00314295,110630.0,110620.0,1.6537902]
[1756451959972,0.17596,110670.0,110650.0,0.18075011]
[1756451960205,0.08429451,110670.0,110660.0,0.00208]
[1756451960439,0.08429451,110670.0,110660.0,8e-05]
[1756451960647,0.01665768,110670.0,110660.0,0.18081377]
[1756451960846,0.00014345,110680.0,110670.0,0.18071744]
[1756451961103,0.01680769,110680.0,110670.0,0.18279744]
[1756451961298,0.01680769,110680.0,110670.0,0.17979744]
[1756451961660,0.00014345,110680.0,110670.0,0.17979744]
[1756451961869,0.00014345,110680.0,110670.0,0.00208]
[1756451962433,0.18071744,110670.0,110660.0,1.58047475]
[1756451962639,0.18071744,110670.0,110660.0,0.2032]
[1756451962787,0.18271744,110670.0,110660.0,0.01008]
[1756451963189,0.18071744,110670.0,110660.0,0.00408]
[1756451963427,0.18071744,110670.0,110660.0,0.002]
[1756451963428,0.68462976,110670.0,110660.0,0.002]
[1756451963630,0.1807667,110640.0,110620.0,1.76775363]
[1756451963887,0.1807667,110640.0,110630.0,0.00208]
[1756451964865,0.1807667,110640.0,110620.0,1.76775363]
[1756451965035,0.1817667,110640.0,110620.0,0.39407888]
[1756451965238,0.1846967,110640.0,110620.0,0.20424]
[1756451965502,0.18078278,110630.0,110620.0,0.19824]
[1756451966034,0.18080071,110620.0,110610.0,0.198]
[1756451966236,0.18081581,110610.0,110590.0,1.64141872]
[1756451966477,0.18083182,110600.0,110580.0,0.18352545]
[1756451966680,0.18083182,110600.0,110570.0,0.20803298]
[1756451966681,0.18084817,110590.0,110570.0,0.20803298]
[1756451966883,0.18086495,110580.0,110550.0,0.25304851]
[1756451967043,0.18086495,110580.0,110550.0,0.36854283]
[1756451967228,0.18086495,110580.0,110550.0,0.096718]
[1756451967229,0.18088088,110570.0,110550.0,0.096718]
[1756451967434,0.18089725,110560.0,110550.0,0.294398]
[1756451967716,0.18089725,110560.0,110550.0,0.296478]
[1756451967921,0.18089725,110560.0,110550.0,0.26928]
[1756451968326,0.18089725,110560.0,110550.0,0.00208]
[1756451968664,0.18089725,110560.0,110540.0,0.18092867]
[1756451968781,0.18089725,110560.0,110540.0,0.46670499]
[1756451969193,0.18089725,110560.0,110540.0,0.46642499]
[1756451969434,0.18091361,110550.0,110540.0,0.1972]
[1756451969638,0.18091361,110550.0,110540.0,0.19928]
[1756451970058,0.18091361,110550.0,110540.0,0.0025566]
[1756451970273,0.18091361,110550.0,110540.0,0.0075566]
[1756451970433,0.18091361,110550.0,110540.0,0.0025566]
[1756451970882,0.18291361,110550.0,110540.0,0.0065566]
[1756451971083,0.26016088,110550.0,110540.0,0.0044766]
[1756451971287,0.35273052,110550.0,110540.0,0.0094766]
[1756451971647,0.54933052,110550.0,110540.0,0.0094766]
[1756451971851,0.35173052,110550.0,110540.0,0.0044766]
[1756451972081,0.54625052,110550.0,110540.0,0.0004766]
[1756451972451,0.54825052,110550.0,110540.0,0.0034766]
[1756451972650,0.54625052,110550.0,110540.0,0.0004766]
[1756451972845,0.45468088,110550.0,110540.0,0.0004766]
[1756451973045,0.07433727,110550.0,110540.0,0.18440658]
[1756451973268,0.003,110550.0,110540.0,0.18948658]
[1756451973690,0.002,110550.0,110540.0,0.18648658]
[1756451974040,0.003,110550.0,110540.0,0.18848658]
[1756451974250,0.35273052,110550.0,110540.0,0.0054766]
[1756451974865,0.003,110550.0,110540.0,1.57055133]
[1756451975063,0.003,110550.0,110540.0,0.2794929]
[1756451976045,0.002,110550.0,110540.0,0.2774929]
[1756451976386,0.18379512,110580.0,110560.0,0.1808884]
[1756451976387,0.18086512,110580.0,110560.0,0.1808884]
[1756451976588,0.72517057,110590.0,110570.0,0.18088088]
[1756451976782,0.18086453,110580.0,110570.0,0.18088088]
[1756451977004,0.18086453,110580.0,110560.0,0.1808884]
[1756451977345,0.18086453,110580.0,110560.0,0.1778884]
[1756451977564,0.18086453,110580.0,110560.0,0.1768884]
[1756451978555,0.18379453,110580.0,110560.0,0.1768884]
[1756451978984,0.18186453,110580.0,110570.0,0.005]
[1756451979192,0.001,110580.0,110570.0,0.18314189]
[1756451979376,0.001,110580.0,110570.0,0.18296088]
[1756451979587,0.003,110580.0,110570.0,0.18296088]
[1756451979832,0.001,110580.0,110570.0,0.18296088]
[1756451980164,0.45519624,110590.0,110570.0,0.18296088]
[1756451980388,0.001,110580.0,110570.0,0.19096088]
[1756451980543,0.002,110580.0,110570.0,0.19096088]
[1756451980907,0.002,110580.0,110570.0,0.19367088]
[1756451981107,0.001,110580.0,110570.0,0.00708]
[1756451981317,0.18186453,110580.0,110570.0,0.00726101]
[1756451981518,0.18186453,110580.0,110570.0,0.18788088]
[1756451981718,0.18086453,110580.0,110570.0,0.002]
[1756451981966,0.18086453,110580.0,110570.0,0.18788088]
[1756451982277,0.18086453,110580.0,110570.0,0.18288088]
[1756451982825,0.18186453,110580.0,110570.0,0.19496088]
[1756451983004,0.37476839,110590.0,110570.0,0.18496088]
[1756451983234,0.18084839,110590.0,110580.0,0.0022608]
[1756451983426,0.18084839,110590.0,110580.0,0.00208]
[1756451983712,0.18084839,110590.0,110580.0,0.0022608]
[1756451983938,0.18575839,110590.0,110570.0,0.19288088]
[1756451984359,0.18575839,110590.0,110570.0,0.18888088]
[1756451984524,0.19283075,110630.0,110610.0,0.18081529]
[1756451984702,0.2621014,110630.0,110600.0,0.38286861]
[1756451985051,0.2621014,110630.0,110610.0,0.18307473]